lending/lending_fUSD_20260204
["ID","MTS","AMOUNT","RATE_DAILY","PERIOD"]
[404515712,1770234557823,-580.0,0.00043287,120]
[404515713,1770234557863,-580.0,0.00043287,120]
[404515714,1770234557901,-580.0,0.00043287,120]
[404515715,1770234557939,-500.0,0.00043287,120]
[404515716,1770234557977,-326.041101,0.00043287,90]
[404515717,1770234558016,-580.03388608,0.00043287,120]
[404515718,1770234558060,-500.0,0.00043287,120]
[404515719,1770234558102,-269.29285934,0.00043287,120]
[404515720,1770234558142,-326.0411,0.00043287,90]
[404515721,1770234558181,-534.37069588,0.00043287,120]
[404515722,1770234558355,-500.0,0.00043287,120]
[404515723,1770234558409,-500.0,0.00043287,120]
[404515724,1770234558456,-500.0,0.00043287,120]
[404515725,1770234558499,-552.23182034,0.00043287,120]
[404515726,1770234558544,-500.0,0.00043287,120]
[404515727,1770234558589,-500.0,0.00043287,120]
[404515728,1770234558633,-614.60564065,0.00043287,120]
[404515729,1770234558677,-555.27615936,0.00043287,120]
[404515730,1770234558722,-578.8040592,0.00043287,120]
[404515731,1770234558764,-278.42099449,0.00043287,120]
[404515732,1770234558807,-191.93896705,0.00043287,120]
[404515733,1770234558853,-500.0,0.00043287,120]
[404515734,1770234558895,-500.0,0.00043287,120]
[404515735,1770234558937,-500.0,0.00043287,120]
[404515736,1770234558982,-500.0,0.00043287,120]
[404515737,1770234559028,-500.0,0.00043287,120]
[404515738,1770234559072,-527.41465188,0.00043287,120]
[404515739,1770234559119,-500.0,0.00043287,120]
[404515740,1770234559162,-579.95448642,0.00043287,120]
[404515741,1770234559204,-500.0,0.00043287,120]
[404515742,1770234559250,-189.78945777,0.00043287,120]
[404515743,1770234559293,-500.0,0.00043287,120]
[404515744,1770234559335,-180.39633102,0.00043287,120]
[404515745,1770234559375,-500.0,0.00043287,120]
[404515746,1770234559416,-500.0,0.00043287,120]
[404515747,1770234559457,-562.76610868,0.00043287,120]
[404515748,1770234559499,-586.9830361,0.00043287,120]
[404515749,1770234559540,-522.15018702,0.00043287,120]
[404515750,1770234559580,-500.0,0.00043287,120]
[404515751,1770234559621,-521.76,0.00043287,120]
[404515752,1770234559661,-500.0,0.00043287,120]
[404515753,1770234559702,-521.76,0.00043287,120]
[404515754,1770234559741,-538.74230154,0.00043287,120]
[404515755,1770234559780,-500.0,0.00043287,120]
[404515756,1770234559819,-521.76,0.00043287,120]
[404515757,1770234559863,-500.0,0.00043287,120]
[404515758,1770234559904,-500.0,0.00043287,120]
[404515759,1770234559946,-521.76,0.00043287,120]
[404515760,1770234559988,-584.18794487,0.00043287,120]
[404515761,1770234560029,-616.04371489,0.00043287,120]
[404515762,1770234560070,-521.76,0.00043287,120]
[404515763,1770234560111,-521.76,0.00043287,120]
[404515764,1770234560151,-521.76,0.00043287,120]
[404515765,1770234560192,-500.0,0.00043287,120]
[404515766,1770234560232,-521.76,0.00043287,120]
[404515767,1770234560273,-203.68185189,0.00043287,120]
[404515768,1770234560313,-521.76,0.00043287,120]
[404515769,1770234560355,-521.76,0.00043287,120]
[404515770,1770234560395,-521.76,0.00043287,120]
[404515771,1770234560435,-500.0,0.00043287,120]
[404515772,1770234560476,-521.76,0.00043287,120]
[404515773,1770234560517,-576.74375991,0.00043287,120]
[404515774,1770234560559,-151.0,0.00043287,120]
[404515775,1770234560604,-521.76,0.00043287,120]
[404515776,1770234560649,-500.0,0.00043287,120]
[404515777,1770234560692,-521.76,0.00043287,120]
[404515778,1770234560736,-500.0,0.00043287,120]
[404515779,1770234560781,-521.76,0.00043287,120]
[404515780,1770234560827,-574.42128919,0.00043287,120]
[404515781,1770234560872,-521.76,0.00043287,120]
[404515782,1770234560918,-511.358801,0.00043287,120]
[404515783,1770234560963,-529.50109579,0.00043287,120]
[404515784,1770234561009,-521.76,0.00043287,120]
[404515785,1770234561056,-521.76,0.00043287,120]
[404515786,1770234561107,-521.76,0.00043287,120]
[404515787,1770234561152,-521.76,0.00043287,120]
[404515788,1770234561196,-500.0,0.00043287,120]
[404515789,1770234561379,-521.76,0.00043287,120]
[404515790,1770234561423,-500.0,0.00043287,120]
[404515791,1770234561469,-521.76,0.00043287,120]
[404515792,1770234561520,-511.358801,0.00043287,120]
[404515793,1770234561567,-500.0,0.00043287,120]
[404515794,1770234561624,-521.76,0.00043287,120]
[404515795,1770234561673,-151.97182202,0.00043287,120]
[404515796,1770234561717,-521.95,0.00043287,120]
[404515797,1770234561760,-500.0,0.00043287,120]
[404515798,1770234561807,-511.358801,0.00043287,120]
[404515799,1770234561852,-505.20697285,0.00043287,120]
[404515800,1770234561897,-500.0,0.00043287,120]
[404515801,1770234561941,-500.0,0.00043287,120]
[404515802,1770234561987,-511.358798,0.00043287,120]
[404515803,1770234562030,-500.0,0.00043287,120]
[404515804,1770234562075,-187.7703006,0.00043287,120]
[404515805,1770234562120,-500.0,0.00043287,120]
[404515806,1770234562166,-500.0,0.00043287,120]
[404515807,1770234562211,-500.0,0.00043287,120]
[404515808,1770234562255,-543.51369762,0.00043287,120]
[404515809,1770234562298,-541.31185018,0.00043287,120]
[404515810,1770234562341,-189.01247365,0.00043287,120]
[404515811,1770234562384,-521.61327694,0.00043287,120]
[404515812,1770234562426,-500.0,0.00043287,120]
[404515813,1770234562469,-621.78628156,0.00043287,120]
[404515814,1770234562518,-162.41751979,0.00043287,120]
[404515815,1770234562568,-500.0,0.00043287,120]
[404515816,1770234562625,-214.84011008,0.00043287,120]
[404515817,1770234562673,-562.32074853,0.00043287,120]
[404515818,1770234562718,-500.0,0.00043287,120]
[404515819,1770234562762,-474.22163784,0.00043287,120]
[404515820,1770234562807,-265.77059924,0.00043287,120]
[404515821,1770234562850,-512.86834254,0.00043287,120]
[404515822,1770234562934,-453.30944246,0.00043287,120]
[404515823,1770234563015,-500.0,0.00043287,120]
[404515824,1770234563101,-524.39174511,0.00043287,120]
[404515825,1770234563181,-500.0,0.00043287,120]
[404515826,1770234563252,-500.0,0.00043287,120]
[404515827,1770234563317,-569.0739542,0.00043287,120]
[404515828,1770234563394,-628.36847951,0.00043287,120]
[404515829,1770234563473,-522.29454305,0.00043287,120]
[404515830,1770234563541,-500.0,0.00043287,120]
[404515831,1770234563613,-512.4113617,0.00043287,120]
[404515832,1770234563683,-194.28471487,0.00043287,120]
[404515833,1770234563752,-500.0,0.00043287,120]
[404515834,1770234563819,-500.0,0.00043287,120]
[404515835,1770234563890,-522.44225091,0.00043287,120]
[404515836,1770234563956,-192.52301606,0.00043287,120]
[404515837,1770234564020,-500.0,0.00043287,120]
[404515838,1770234564087,-500.0,0.00043287,120]
[404515839,1770234564153,-500.0,0.00043287,120]
[404515840,1770234564216,-500.0,0.00043287,120]
[404515841,1770234564282,-170.06148012,0.00043287,120]
[404515842,1770234564346,-632.89399099,0.00043287,120]
[404515843,1770234564410,-500.0,0.00043287,120]
[404515844,1770234564473,-500.0,0.00043287,120]
[404515845,1770234564535,-500.0,0.00043287,120]
[404515846,1770234564602,-500.0,0.00043287,120]
[404515847,1770234564663,-220.70899403,0.00043287,120]
[404515848,1770234564724,-500.0,0.00043287,120]
[404515849,1770234564782,-581.94142621,0.00043287,120]
[404515850,1770234564842,-500.0,0.00043287,120]
[404515851,1770234564903,-192.20300132,0.00043287,120]
[404515852,1770234564965,-500.0,0.00043287,120]
[404515853,1770234565030,-625.35415833,0.00043287,120]
[404515854,1770234565291,-519.29758898,0.00043287,120]
[404515855,1770234565334,-519.87602619,0.00043287,120]
[404515856,1770234565376,-500.0,0.00043287,120]
[404515857,1770234565417,-500.0,0.00043287,120]
[404515858,1770234565457,-500.0,0.00043287,120]
[404515859,1770234565500,-500.0,0.00043287,120]
[404515860,1770234565544,-550.28037264,0.00043287,120]
[404515861,1770234565587,-500.0,0.00043287,120]
[404515862,1770234565630,-500.0,0.00043287,120]
[404515863,1770234565671,-500.0,0.00043287,120]
[404515864,1770234565709,-544.68309178,0.00043287,120]
[404515865,1770234565748,-565.22090615,0.00043287,120]
[404515866,1770234565788,-500.0,0.00043287,120]
[404515867,1770234565833,-500.0,0.00043287,120]
[404515868,1770234565874,-500.0,0.00043287,120]
[404515869,1770234565913,-500.0,0.00043287,120]
[404515870,1770234565952,-500.0,0.00043287,120]
[404515871,1770234565992,-500.0,0.00043287,120]
[404515872,1770234566037,-500.0,0.00043287,120]
[404515873,1770234566083,-500.0,0.00043287,120]
[404515874,1770234566126,-500.0,0.00043287,120]
[404515875,1770234566167,-182.2430794,0.00043287,120]
[404515876,1770234566207,-500.0,0.00043287,120]
[404515877,1770234566248,-158.54745179,0.00043287,120]
[404515878,1770234566290,-500.0,0.00043287,120]
[404515879,1770234566331,-500.0,0.00043287,120]
[404515880,1770234566371,-500.0,0.00043287,120]
[404515881,1770234566420,-526.62949126,0.00043287,120]
[404515882,1770234566464,-500.0,0.00043287,120]
[404515883,1770234566507,-500.0,0.00043287,120]
[404515884,1770234566551,-500.0,0.00043287,120]
[404515885,1770234566597,-500.0,0.00043287,120]
[404515886,1770234566643,-500.0,0.00043287,120]
[404515887,1770234566689,-500.0,0.00043287,120]
[404515888,1770234566733,-511.23502266,0.00043287,14]
[404515889,1770234566777,-500.0,0.00043287,120]
[404515890,1770234566824,-500.0,0.00043287,120]
[404515891,1770234566869,-500.0,0.00043287,120]
[404515892,1770234566914,-500.0,0.00043287,120]
[404515893,1770234566959,-252.64468832,0.00043287,120]
[404515894,1770234567004,-500.0,0.00043287,120]
[404515895,1770234567050,-190.06188566,0.00043287,120]
[404515896,1770234567101,-500.0,0.00043287,120]
[404515897,1770234567147,-500.0,0.00043287,120]
[404515898,1770234567194,-500.0,0.00043287,120]
[404515899,1770234567239,-600.55221209,0.00043287,120]
[404515900,1770234567283,-500.0,0.00043287,120]
[404515901,1770234567326,-500.0,0.00043287,120]
[404515902,1770234567367,-164.45704726,0.00043287,120]
[404515903,1770234567409,-500.0,0.00043287,120]
[404515904,1770234567451,-500.0,0.00043287,120]
[404515905,1770234567494,-524.88455013,0.00043287,120]
[404515906,1770234567538,-500.0,0.00043287,120]
[404515907,1770234567585,-500.0,0.00043287,120]
[404515908,1770234567631,-526.22820397,0.00043287,120]
[404515909,1770234567679,-500.0,0.00043287,120]
[404515910,1770234567727,-500.0,0.00043287,120]
[404515911,1770234567777,-532.18575693,0.00043287,120]
[404515912,1770234567822,-511.32179498,0.00043287,120]
[404515913,1770234567869,-500.0,0.00043287,120]
[404515914,1770234567916,-500.0,0.00043287,120]
[404515915,1770234567962,-221.41181747,0.00043287,120]
[404515916,1770234568007,-500.0,0.00043287,120]
[404515917,1770234568052,-500.0,0.00043287,120]
[404515918,1770234568096,-514.27821064,0.00043287,120]
[404515919,1770234568146,-500.0,0.00043287,120]
[404515920,1770234568190,-500.0,0.00043287,120]
[404515921,1770234568234,-500.0,0.00043287,120]
[404515922,1770234568278,-500.0,0.00043287,120]
[404515923,1770234568320,-366.5584604,0.00043287,120]
[404515924,1770234568543,-538.3919223,0.00043287,120]
[404515925,1770234568597,-500.0,0.00043287,30]
[404515926,1770234568642,-594.52781717,0.00043287,30]
[404515927,1770234568689,-151.0,0.00043287,120]
[404515928,1770234568735,-500.0,0.00043287,120]
[404515929,1770234568780,-644.89892754,0.00043287,120]
[404515930,1770234568825,-151.0,0.00043287,120]
[404515931,1770234568870,-179.90071,0.00043287,120]
[404515932,1770234568916,-179.90071,0.00043287,120]
[404515933,1770234568963,-500.0,0.00043287,120]
[404515934,1770234569027,-500.0,0.00043287,120]
[404515935,1770234569077,-500.0,0.00043287,120]
[404515936,1770234569125,-500.0,0.00043287,120]
[404515937,1770234569174,-500.0,0.00043287,120]
[404515938,1770234569222,-179.90071,0.00043287,120]
[404515939,1770234569269,-500.0,0.00043287,120]
[404515940,1770234569316,-207.00507617,0.00043287,120]
[404515941,1770234569364,-500.0,0.00043287,120]
[404515942,1770234569412,-533.75239855,0.00043287,120]
[404515943,1770234569460,-182.91881055,0.00043287,120]
[404515944,1770234569510,-613.30354088,0.00043287,120]
[404515945,1770234569562,-500.0,0.00043287,120]
[404515946,1770234569611,-500.0,0.00043287,120]
[404515947,1770234569663,-174.78212384,0.00043287,120]
[404515948,1770234569712,-179.9007,0.00043287,120]
[404515949,1770234569759,-500.0,0.00043287,120]
[404515950,1770234569807,-447.65155502,0.00043287,120]
[404515951,1770234569855,-500.0,0.00043287,120]
[404515952,1770234569901,-500.0,0.00043287,120]
[404515953,1770234569950,-558.48245519,0.00043287,120]
[404515954,1770234569998,-500.0,0.00043287,120]
[404515955,1770234570047,-500.0,0.00043287,120]
[404515956,1770234570094,-500.0,0.00043287,120]
[404515957,1770234570141,-500.0,0.00043287,120]
[404515958,1770234570191,-500.0,0.00043287,120]
[404515959,1770234570238,-500.0,0.00043287,120]
[404515960,1770234570286,-500.0,0.00043287,120]
[404515961,1770234570334,-500.0,0.00043287,120]
[404515962,1770234570384,-612.882824,0.00043287,120]
[404515963,1770234570430,-500.0,0.00043287,120]
[404515964,1770234570477,-500.0,0.00043287,120]
[404515965,1770234570523,-500.0,0.00043287,120]
[404515966,1770234570569,-500.0,0.00043287,120]
[404515967,1770234570616,-500.0,0.00043287,120]
[404515968,1770234570661,-500.0,0.00043287,120]
[404515969,1770234570705,-500.0,0.00043287,120]
[404515970,1770234570747,-623.53965086,0.00043287,120]
[404515971,1770234570792,-228.54031014,0.00043287,120]
[404515972,1770234570840,-500.0,0.00043287,120]
[404515973,1770234570887,-500.0,0.00043287,120]
[404515974,1770234570933,-511.81529855,0.00043287,120]
[404515975,1770234570979,-500.0,0.00043287,120]
[404515976,1770234571029,-521.526799,0.00043287,120]
[404515977,1770234571080,-500.0,0.00043287,120]
[404515978,1770234571126,-500.0,0.00043287,120]
[404515979,1770234571172,-500.0,0.00043287,120]
[404515980,1770234571215,-500.0,0.00043287,120]
[404515981,1770234571261,-441.82730133,0.00043287,120]
[404515982,1770234571307,-500.0,0.00043287,120]
[404515983,1770234571353,-646.29037614,0.00043287,120]
[404515984,1770234571400,-521.13374787,0.00043287,120]
[404515985,1770234571447,-500.0,0.00043287,120]
[404515986,1770234571494,-500.0,0.00043287,120]
[404515987,1770234571543,-500.0,0.00043287,120]
[404515988,1770234571592,-500.0,0.00043287,120]
[404515989,1770234571636,-500.0,0.00043287,120]
[404515990,1770234571680,-500.0,0.00043287,120]
[404515991,1770234571723,-499.96716854,0.00043287,120]
[404515992,1770234571765,-414.66955549,0.00043287,120]
[404515993,1770234572020,-500.0,0.00043287,120]
[404515994,1770234572071,-500.0,0.00043287,120]
[404515995,1770234572121,-522.57432652,0.00043287,120]
[404515996,1770234572169,-500.0,0.00043287,120]
[404515997,1770234572214,-542.05993707,0.00043287,120]
[404515998,1770234572262,-500.0,0.00043287,120]
[404515999,1770234572303,-500.0,0.00043287,120]
[404516000,1770234572345,-500.0,0.00043287,120]
[404516001,1770234572387,-258.77022691,0.00043287,120]
[404516002,1770234572432,-500.0,0.00043287,120]
[404516003,1770234572474,-500.0,0.00043287,120]
[404516004,1770234572515,-500.0,0.00043287,120]
[404516005,1770234572555,-545.01261241,0.00043287,120]
[404516006,1770234572595,-238.34288752,0.00043287,120]
[404516007,1770234572636,-500.0,0.00043287,120]
[404516008,1770234572676,-500.0,0.00043287,120]
[404516009,1770234572717,-500.0,0.00043287,120]
[404516010,1770234572762,-500.0,0.00043287,120]
[404516011,1770234572806,-500.0,0.00043287,120]
[404516012,1770234572854,-223.58956172,0.00043287,120]
[404516013,1770234572897,-500.0,0.00043287,120]
[404516014,1770234572939,-556.65699264,0.00043287,120]
[404516015,1770234572980,-600.05871125,0.00043287,120]
[404516016,1770234573024,-500.0,0.00043287,120]
[404516017,1770234573068,-500.0,0.00043287,120]
[404516018,1770234573113,-500.0,0.00043287,120]
[404516019,1770234573157,-500.0,0.00043287,120]
[404516020,1770234573202,-551.36647327,0.00043287,120]
[404516021,1770234573248,-500.0,0.00043287,120]
[404516022,1770234573292,-348.8948032,0.00043287,120]
[404516023,1770234573336,-500.0,0.00043287,120]
[404516024,1770234573380,-572.75870685,0.00043287,120]
[404516025,1770234573423,-335.37521963,0.00043287,120]
[404516026,1770234573468,-537.23097921,0.00043287,120]
[404516027,1770234573516,-625.4471542,0.00043287,120]
[404516028,1770234573564,-500.0,0.00043287,120]
[404516029,1770234573616,-500.0,0.00043287,120]
[404516030,1770234573664,-630.87556702,0.00043287,120]
[404516031,1770234573713,-500.0,0.00043287,120]
[404516032,1770234573762,-536.93564051,0.00043287,120]
[404516033,1770234573811,-500.0,0.00043287,120]
[404516034,1770234573860,-500.0,0.00043287,120]
[404516035,1770234573908,-522.77915811,0.00043287,120]
[404516036,1770234573955,-500.0,0.00043287,120]
[404516037,1770234574001,-500.0,0.00043287,120]
[404516038,1770234574048,-264.87759692,0.00043287,120]
[404516039,1770234574096,-500.0,0.00043287,120]
[404516040,1770234574143,-498.04047595,0.00043287,120]
[404516041,1770234574188,-500.0,0.00043287,120]
[404516042,1770234574233,-500.0,0.00043287,120]
[404516043,1770234574278,-500.0,0.00043287,120]
[404516044,1770234574323,-170.20829087,0.00043287,120]
[404516045,1770234574368,-530.93748917,0.00043287,120]
[404516046,1770234574413,-500.0,0.00043287,120]
[404516047,1770234574457,-500.0,0.00043287,120]
[404516048,1770234574500,-500.0,0.00043287,120]
[404516049,1770234574543,-271.24493464,0.00043287,120]
[404516050,1770234574588,-520.20758847,0.00043287,120]
[404516051,1770234574632,-500.0,0.00043287,120]
[404516052,1770234574674,-500.0,0.00043287,120]
[404516053,1770234574714,-541.79863879,0.00043287,120]
[404516054,1770234574754,-500.0,0.00043287,120]
[404516055,1770234574795,-500.0,0.00043287,120]
[404516056,1770234574839,-168.6377797,0.00043287,120]
[404516057,1770234574883,-151.0,0.00043287,120]
[404516058,1770234574929,-596.10090661,0.00043287,120]
[404516059,1770234574977,-500.0,0.00043287,120]
[404516060,1770234575171,-639.07309523,0.00043287,120]
[404516061,1770234575220,-151.0,0.00043287,120]
[404516062,1770234575271,-500.0,0.00043287,120]
[404516063,1770234575316,-292.145349,0.00043287,120]
[404516064,1770234575364,-500.0,0.00043287,120]
[404516065,1770234575408,-500.0,0.00043287,120]
[404516066,1770234575452,-500.0,0.00043287,120]
[404516067,1770234575496,-383.08557758,0.00043287,120]
[404516068,1770234575542,-500.0,0.00043287,120]
[404516069,1770234575586,-500.0,0.00043287,120]
[404516070,1770234575630,-564.27203363,0.00043287,120]
[404516071,1770234575673,-180.55770868,0.00043287,120]
[404516072,1770234575717,-500.0,0.00043287,120]
[404516073,1770234575759,-622.72488391,0.00043287,120]
[404516074,1770234575802,-500.0,0.00043287,120]
[404516075,1770234575850,-500.0,0.00043287,120]
[404516076,1770234575896,-500.0,0.00043287,120]
[404516077,1770234575942,-500.0,0.00043287,120]
[404516078,1770234575988,-371.51993098,0.00043287,120]
[404516079,1770234576033,-500.0,0.00043287,120]
[404516080,1770234576078,-500.0,0.00043287,120]
[404516081,1770234576125,-557.72225639,0.00043287,120]
[404516082,1770234576169,-500.0,0.00043287,120]
[404516083,1770234576213,-500.0,0.00043287,120]
[404516084,1770234576258,-500.0,0.00043287,120]
[404516085,1770234576300,-518.06269865,0.00043287,120]
[404516086,1770234576342,-526.12965116,0.00043287,120]
[404516087,1770234576385,-500.0,0.00043287,120]
[404516088,1770234576428,-500.0,0.00043287,120]
[404516089,1770234576474,-500.0,0.00043287,120]
[404516090,1770234576522,-500.0,0.00043287,120]
[404516091,1770234576569,-500.0,0.00043287,120]
[404516092,1770234576631,-464.41951737,0.00043287,120]
[404516093,1770234576708,-500.0,0.00043287,120]
[404516094,1770234576782,-500.0,0.00043287,120]
[404516095,1770234576859,-500.0,0.00043287,120]
[404516096,1770234576931,-500.0,0.00043287,120]
[404516097,1770234576996,-500.0,0.00043287,120]
[404516098,1770234577063,-608.10602,0.00043287,120]
[404516099,1770234577131,-514.96246906,0.00043287,120]
[404516100,1770234577194,-539.13050815,0.00043287,120]
[404516101,1770234577261,-500.0,0.00043287,120]
[404516102,1770234577324,-500.0,0.00043287,120]
[404516103,1770234577393,-336.84714306,0.00043287,120]
[404516104,1770234577457,-150.00000195,0.00043287,120]
[404516105,1770234577519,-500.0,0.00043287,120]
[404516106,1770234577582,-500.0,0.00043287,120]
[404516107,1770234577646,-151.0,0.00043287,120]
[404516108,1770234577709,-500.0,0.00043287,120]
[404516109,1770234577770,-500.0,0.00043287,120]
[404516110,1770234577833,-158.33538906,0.00043287,120]
[404516111,1770234577897,-151.0,0.00043287,120]
[404516112,1770234577959,-500.0,0.00043287,120]
[404516113,1770234578026,-500.0,0.00043287,120]
[404516114,1770234578092,-566.1137353,0.00043287,120]
[404516115,1770234578158,-156.777696,0.00043287,120]
[404516116,1770234578223,-500.0,0.00043287,120]
[404516117,1770234578291,-529.99,0.00043287,120]
[404516118,1770234578355,-500.0,0.00043287,120]
[404516119,1770234578419,-500.0,0.00043287,120]
[404516120,1770234578484,-500.0,0.00043287,120]
[404516121,1770234578548,-500.0,0.00043287,120]
[404516122,1770234578615,-447.21436944,0.00043287,120]
[404516123,1770234578680,-618.895219,0.00043287,120]
[404516124,1770234578744,-500.0,0.00043287,120]
[404516125,1770234579016,-500.0,0.00043287,120]
[404516126,1770234579070,-500.0,0.00043287,120]
[404516127,1770234579118,-500.0,0.00043287,120]
[404516128,1770234579165,-500.0,0.00043287,120]
[404516129,1770234579210,-500.0,0.00043287,120]
[404516130,1770234579255,-500.0,0.00043287,120]
[404516131,1770234579303,-500.0,0.00043287,120]
[404516132,1770234579348,-588.27330656,0.00043287,120]
[404516133,1770234579390,-500.0,0.00043287,120]
[404516134,1770234579436,-501.67583932,0.00043287,120]
[404516135,1770234579479,-500.0,0.00043287,120]
[404516136,1770234579519,-333.87658917,0.00043287,120]
[404516137,1770234579568,-638.66476887,0.00043287,120]
[404516138,1770234579614,-151.0,0.00043287,120]
[404516139,1770234579659,-500.0,0.00043287,120]
[404516140,1770234579709,-151.0,0.00043287,120]
[404516141,1770234579757,-529.69076481,0.00043287,120]
[404516142,1770234579803,-500.0,0.00043287,120]
[404516143,1770234579847,-500.0,0.00043287,120]
[404516144,1770234579892,-500.0,0.00043287,120]
[404516145,1770234579938,-500.0,0.00043287,120]
[404516146,1770234579984,-500.0,0.00043287,120]
[404516147,1770234580033,-500.0,0.00043287,120]
[404516148,1770234580085,-340.71456812,0.00043287,120]
[404516149,1770234580135,-427.62793595,0.00043287,120]
[404516150,1770234580180,-500.0,0.00043287,120]
[404516151,1770234580224,-500.0,0.00043287,120]
[404516152,1770234580266,-543.63000319,0.00043287,120]
[404516153,1770234580308,-500.0,0.00043287,120]
[404516154,1770234580349,-286.71609098,0.00043287,120]
[404516155,1770234580395,-500.0,0.00043287,120]
[404516156,1770234580440,-405.22341868,0.00043287,120]
[404516157,1770234580485,-500.0,0.00043287,120]
[404516158,1770234580531,-500.0,0.00043287,120]
[404516159,1770234580576,-500.0,0.00043287,120]
[404516160,1770234580622,-518.74371511,0.00043287,120]
[404516161,1770234580666,-151.0,0.00043287,10]
[404516162,1770234580710,-447.88705321,0.00043287,120]
[404516163,1770234580751,-500.0,0.00043287,120]
[404516164,1770234580792,-532.06690392,0.00043287,120]
[404516165,1770234580840,-500.0,0.00043287,120]
[404516166,1770234580891,-500.0,0.00043287,120]
[404516167,1770234580942,-500.0,0.00043287,120]
[404516168,1770234580992,-500.0,0.00043287,120]
[404516169,1770234581041,-500.0,0.00043287,120]
[404516170,1770234581091,-500.0,0.00043287,120]
[404516171,1770234581144,-500.0,0.00043287,120]
[404516172,1770234581194,-641.65454833,0.00043287,120]
[404516173,1770234581240,-500.0,0.00043287,120]
[404516174,1770234581280,-500.0,0.00043287,120]
[404516175,1770234581322,-500.0,0.00043287,120]
[404516176,1770234581363,-151.0,0.00043287,10]
[404516177,1770234581407,-500.0,0.00043287,120]
[404516178,1770234581449,-500.0,0.00043287,120]
[404516179,1770234581492,-500.0,0.00043287,120]
[404516180,1770234581537,-551.89084188,0.00043287,120]
[404516181,1770234581581,-500.0,0.00043287,120]
[404516182,1770234581626,-500.0,0.00043287,120]
[404516183,1770234581668,-500.0,0.00043287,120]
[404516184,1770234581709,-500.0,0.00043287,120]
[404516185,1770234581748,-500.0,0.00043287,120]
[404516186,1770234581787,-500.0,0.00043287,120]
[404516187,1770234581829,-151.0,0.00043287,10]
[404516188,1770234581873,-500.0,0.00043287,120]
[404516189,1770234581920,-529.15186453,0.00043287,120]
[404516190,1770234581984,-308.3507546,0.00043287,120]
[404516191,1770234582038,-500.0,0.00043287,120]
[404516192,1770234582108,-500.0,0.00043287,120]
[404516193,1770234582164,-500.0,0.00043287,120]
[404516194,1770234582215,-500.0,0.00043287,120]
[404516195,1770234582266,-500.0,0.00043287,120]
[404516196,1770234582318,-518.18751463,0.00043287,120]
[404516197,1770234582370,-176.16007778,0.00043287,120]
[404516198,1770234582421,-157.5108472,0.00043287,120]
[404516199,1770234582473,-258.63833205,0.00043287,120]
[404516200,1770234582525,-500.0,0.00043287,120]
[404516201,1770234582585,-297.69700896,0.00043287,120]
[404516202,1770234582652,-217.31020427,0.00043287,120]
[404516203,1770234582701,-174.57333031,0.00043287,120]
[404516204,1770234582747,-500.0,0.00043287,120]
[404516205,1770234582794,-500.0,0.00043287,120]
[404516206,1770234583058,-169.82026791,0.00043287,120]
[404516207,1770234583110,-339.56799272,0.00043287,120]
[404516208,1770234583161,-500.0,0.00043287,120]
[404516209,1770234583209,-500.0,0.00043287,120]
[404516210,1770234583259,-500.0,0.00043287,120]
[404516211,1770234583305,-500.0,0.00043287,120]